bitfinex/quotes_SOLUSD_20230402
["timestamp","ask_amount","ask_price","bid_price","bid_amount"]
[1680475430949,10.0,20.4,20.39,10.0]
[1680475431146,20.0,20.399,20.39,10.0]
[1680475431845,10.0,20.4,20.39,10.0]
[1680475432055,20.0,20.399,20.39,10.0]
[1680475432437,20.0,20.401,20.39,10.0]
[1680475433457,10.0,20.402,20.39,10.0]
[1680475433758,20.0,20.401,20.39,10.0]
[1680475434357,10.0,20.402,20.39,10.0]
[1680475434548,20.0,20.401,20.39,10.0]
[1680475435456,10.0,20.402,20.39,10.0]
[1680475435646,20.0,20.401,20.39,10.0]
[1680475436559,10.0,20.402,20.39,10.0]
[1680475436760,20.0,20.401,20.39,10.0]
[1680475438156,10.0,20.402,20.389,17.0]
[1680475438357,10.0,20.4,20.389,17.0]
[1680475438660,20.0,20.399,20.389,17.0]
[1680475439449,10.0,20.4,20.389,17.0]
[1680475439651,20.0,20.399,20.389,17.0]
[1680475440445,10.0,20.4,20.389,17.0]
[1680475440647,20.0,20.399,20.389,17.0]
[1680475441463,10.0,20.4,20.389,17.0]
[1680475441647,20.0,20.399,20.389,17.0]
[1680475443554,10.0,20.4,20.389,17.0]
[1680475443760,20.0,20.399,20.389,17.0]
[1680475444357,20.0,20.399,20.389,10.0]
[1680475444661,20.0,20.399,20.387,10.0]
[1680475444856,10.0,20.398,20.385,10.0]
[1680475446468,10.0,20.398,20.384,29.599699]
[1680475447362,10.0,20.398,20.385,10.0]
[1680475451672,20.0,20.399,20.385,10.0]
[1680475458275,20.0,20.399,20.384,29.599699]
[1680475458974,10.0,20.397,20.384,29.599699]
[1680475459175,10.0,20.395,20.384,29.599699]
[1680475461273,10.0,20.397,20.384,29.599699]
[1680475461487,10.0,20.395,20.384,29.599699]
[1680475462566,10.0,20.397,20.384,29.599699]
[1680475462764,10.0,20.395,20.384,29.599699]
[1680475464780,17.0,20.396,20.384,29.599699]
[1680475472473,10.0,20.396,20.384,29.599699]
[1680475474496,17.0,20.397,20.384,29.599699]
[1680475475192,32.00029713,20.397,20.384,29.599699]
[1680475480984,15.00029713,20.397,20.384,29.599699]
[1680475481182,20.0,20.399,20.385,17.0]
[1680475481385,20.0,20.399,20.386,10.0]
[1680475481903,20.0,20.399,20.388,10.0]
[1680475483085,20.0,20.399,20.386,10.0]
[1680475490409,20.0,20.399,20.385,10.0]
[1680475491211,10.0,20.397,20.385,10.0]
[1680475491810,17.0,20.398,20.385,10.0]
[1680475503217,20.0,20.399,20.385,10.0]
[1680475503424,20.0,20.399,20.387,10.0]
[1680475504400,20.0,20.399,20.385,10.0]
[1680475504818,10.0,20.397,20.385,10.0]
[1680475505721,27.0,20.398,20.385,10.0]
[1680475506423,17.0,20.398,20.385,10.0]
[1680475510734,20.0,20.399,20.385,10.0]
[1680475515123,117.44594372,20.405,20.385,10.0]
[1680475515124,22.67,20.41,20.391,10.0]
[1680475515526,10.0,20.409,20.391,10.0]
[1680475515824,10.0,20.409,20.392,17.0]
[1680475516032,10.0,20.409,20.393,10.0]
[1680475516330,10.0,20.409,20.394,17.0]
[1680475516514,10.0,20.409,20.395,10.0]
[1680475517017,37.67837773,20.41,20.395,10.0]
[1680475517217,10.0,20.408,20.395,10.0]
[1680475519422,10.0,20.406,20.394,109.9195]
[1680475520417,10.0,20.404,20.394,109.9195]
[1680475520619,17.0,20.403,20.394,109.9195]
[1680475521729,10.0,20.404,20.394,109.9195]
[1680475521928,17.0,20.403,20.394,109.9195]
[1680475524038,10.0,20.404,20.394,109.9195]
[1680475524333,17.0,20.403,20.394,109.9195]
[1680475526343,10.0,20.404,20.394,109.9195]
[1680475526933,17.0,20.403,20.394,109.9195]
[1680475528139,10.0,20.404,20.394,109.9195]
[1680475528439,17.0,20.403,20.394,109.9195]
[1680475529438,10.0,20.404,20.394,109.9195]
[1680475529639,17.0,20.403,20.394,109.9195]
[1680475530931,10.0,20.404,20.394,109.9195]
[1680475531132,17.0,20.403,20.394,109.9195]
[1680475532435,10.0,20.404,20.394,109.9195]
[1680475532636,17.0,20.403,20.394,109.9195]
[1680475534045,10.0,20.404,20.394,109.9195]
[1680475534345,17.0,20.403,20.394,109.9195]
[1680475535743,10.0,20.404,20.394,109.9195]
[1680475535945,17.0,20.403,20.394,109.9195]
[1680475537444,10.0,20.404,20.394,109.9195]
[1680475537645,17.0,20.403,20.394,109.9195]
[1680475538841,10.0,20.404,20.394,109.9195]
[1680475539042,17.0,20.403,20.394,109.9195]
[1680475540151,17.0,20.405,20.394,109.9195]
[1680475544549,10.0,20.406,20.394,109.9195]
[1680475544749,10.0,20.404,20.394,109.9195]
[1680475545250,17.0,20.403,20.394,109.9195]
[1680475545852,10.0,20.406,20.394,109.9195]
[1680475546059,17.0,20.405,20.394,109.9195]
[1680475546254,10.0,20.404,20.394,109.9195]
[1680475548361,17.0,20.405,20.394,109.9195]
[1680475556042,10.0,20.406,20.394,109.9195]
[1680475556247,10.0,20.404,20.394,109.9195]
[1680475559565,17.0,20.405,20.394,109.9195]
[1680475560751,10.0,20.406,20.394,109.9195]
[1680475560952,10.0,20.404,20.394,109.9195]
[1680475561865,10.0,20.406,20.394,109.9195]
[1680475562065,10.0,20.404,20.394,109.9195]
[1680475562864,10.0,20.406,20.394,109.9195]
[1680475563064,10.0,20.404,20.394,109.9195]
[1680475563866,10.0,20.406,20.394,109.9195]
[1680475564065,10.0,20.404,20.394,109.9195]
[1680475564250,10.0,20.406,20.394,109.9195]
[1680475564449,10.0,20.404,20.394,109.9195]
[1680475564650,10.0,20.406,20.394,109.9195]
[1680475564959,10.0,20.404,20.394,109.9195]
[1680475565153,17.0,20.405,20.394,109.9195]
[1680475585190,10.0,20.405,20.394,109.9195]
[1680475585376,17.0,20.404,20.394,109.9195]
[1680475585575,17.0,20.404,20.396,10.0]
[1680475585785,17.0,20.404,20.395,116.5973]
[1680475586889,10.0,20.404,20.395,116.5973]
[1680475587187,17.0,20.403,20.395,116.5973]
[1680475587489,17.0,20.405,20.395,116.5973]
[1680475587791,10.0,20.405,20.395,116.5973]
[1680475587989,17.0,20.404,20.395,116.5973]
[1680475588489,17.0,20.405,20.395,116.5973]
[1680475592499,10.0,20.405,20.395,116.5973]
[1680475592702,17.0,20.404,20.395,116.5973]
[1680475593493,10.0,20.404,20.395,116.5973]
[1680475593696,17.0,20.403,20.395,116.5973]
[1680475594087,10.0,20.404,20.395,116.5973]
[1680475594288,17.0,20.403,20.395,116.5973]
[1680475594799,17.0,20.405,20.395,116.5973]
[1680475596994,10.0,20.405,20.395,116.5973]
[1680475598697,17.0,20.406,20.395,116.5973]
[1680475605408,10.0,20.405,20.395,116.5973]
[1680475606297,17.0,20.406,20.395,116.5973]
[1680475636130,17.0,20.406,20.395,116.5973]
[1680475638023,27.0,20.406,20.395,116.5973]
[1680475638726,17.0,20.406,20.395,116.5973]
[1680475652446,108.81392585,20.407,20.395,116.5973]
[1680475655151,10.0,20.406,20.395,111.77991999]
[1680475655740,108.81392585,20.407,20.395,111.77991999]
[1680475658446,108.81392585,20.407,20.4,22.71]
[1680475658655,22.77,20.42,20.401,10.0]
[1680475658854,58.77,20.42,20.402,17.0]
[1680475659155,58.77,20.42,20.403,10.0]
[1680475659733,10.0,20.419,20.403,10.0]
[1680475659933,17.0,20.418,20.403,10.0]
[1680475660131,10.0,20.417,20.403,10.0]
[1680475661738,10.0,20.417,20.402,10.0]
[1680475661936,10.0,20.417,20.401,10.0]
[1680475661937,10.0,20.415,20.401,10.0]
[1680475662337,10.0,20.413,20.4,22.71]
[1680475663653,10.0,20.413,20.402,10.0]
[1680475664155,17.0,20.414,20.402,10.0]
[1680475667659,17.0,20.414,20.401,10.0]
[1680475668459,17.0,20.414,20.4,22.69]
[1680475670563,17.0,20.414,20.401,10.0]
[1680475671461,45.24081174,20.427,20.402,7.35284372]
[1680475671668,10.0,20.426,20.403,27.0]
[1680475671862,10.0,20.426,20.405,10.0]
[1680475672563,45.24081174,20.427,20.41,22.86]
[1680475672768,59.82582164,20.427,20.411,10.0]
[1680475672970,14.5850099,20.427,20.411,10.0]
[1680475673270,10.0,20.429,20.411,10.0]
[1680475673455,10.0,20.426,20.411,10.0]
[1680475673861,10.0,20.424,20.411,10.0]
[1680475674070,10.0,20.422,20.411,10.0]
[1680475674463,17.0,20.421,20.411,10.0]
[1680475675663,10.0,20.422,20.411,10.0]
[1680475675870,17.0,20.421,20.411,10.0]
[1680475676069,17.0,20.421,20.41,22.86]
[1680475677170,17.0,20.421,20.408,19.583725]
[1680475677366,17.0,20.421,20.41,10.0]
[1680475678374,10.0,20.424,20.41,10.0]
[1680475678375,10.0,20.422,20.41,10.0]
[1680475678573,10.0,20.42,20.41,10.0]
[1680475678870,10.0,20.422,20.41,10.0]
[1680475679072,10.0,20.42,20.41,10.0]
[1680475679461,10.0,20.422,20.41,10.0]
[1680475679660,10.0,20.42,20.409,10.0]
[1680475680060,10.0,20.422,20.409,10.0]
[1680475680270,10.0,20.42,20.409,10.0]
[1680475680666,17.0,20.421,20.409,10.0]
[1680475681587,17.0,20.421,20.408,19.583725]
[1680475681788,17.0,20.421,20.41,10.0]
[1680475682091,17.0,20.421,20.408,19.583725]
[1680475682389,10.0,20.42,20.409,20.0]
[1680475683991,10.0,20.42,20.408,19.583725]
[1680475684175,10.0,20.418,20.408,19.583725]
[1680475684378,10.0,20.416,20.408,19.583725]
[1680475685584,10.0,20.418,20.408,19.583725]
[1680475685785,10.0,20.416,20.408,19.583725]
[1680475685985,10.0,20.416,20.405,116.6178]
[1680475686379,17.0,20.415,20.405,116.6178]
[1680475686588,10.0,20.414,20.405,116.6178]
[1680475689286,17.0,20.413,20.394,109.9195]
[1680475689485,10.0,20.412,20.397,10.0]
[1680475689685,17.0,20.411,20.398,20.0]
[1680475689881,10.0,20.41,20.398,20.0]
[1680475690184,10.0,20.408,20.398,20.0]
[1680475690388,10.0,20.408,20.397,10.0]
[1680475690892,10.0,20.408,20.401,19.589751]
[1680475691396,10.0,20.41,20.401,19.589751]
[1680475691601,10.0,20.408,20.401,19.589751]
[1680475692198,10.0,20.41,20.401,19.589751]
[1680475692386,10.0,20.408,20.401,19.589751]
[1680475693086,17.0,20.409,20.401,19.589751]
[1680475696202,24.46712922,20.418,20.401,19.589751]
[1680475696597,24.46712922,20.418,20.402,10.0]
[1680475699606,24.46712922,20.418,20.401,29.589751]
[1680475700205,10.0,20.413,20.401,19.589751]
[1680475700818,10.0,20.411,20.401,19.589751]
[1680475701494,17.0,20.412,20.401,19.589751]
[1680475701706,10.0,20.413,20.401,19.589751]
[1680475701897,17.0,20.412,20.401,19.589751]
[1680475704107,24.46712922,20.418,20.401,19.589751]
[1680475704319,14.46712922,20.418,20.402,10.0]
[1680475709716,14.46712922,20.418,20.401,19.589751]
[1680475709925,10.0,20.414,20.401,19.589751]
[1680475710113,10.0,20.412,20.401,19.589751]
[1680475710523,10.0,20.414,20.401,19.589751]
[1680475710722,10.0,20.412,20.401,19.589751]
[1680475711221,10.0,20.414,20.401,19.589751]
[1680475711423,10.0,20.412,20.401,19.589751]
[1680475712223,10.0,20.414,20.401,19.589751]
[1680475715417,14.46712922,20.418,20.401,19.589751]
[1680475715625,10.0,20.414,20.402,10.0]
[1680475718926,27.0,20.415,20.402,10.0]
[1680475719528,17.0,20.415,20.402,10.0]
[1680475720726,17.0,20.415,20.401,19.589751]
[1680475720924,10.0,20.414,20.401,19.589751]
[1680475722229,10.0,20.412,20.401,19.589751]
[1680475722623,10.0,20.41,20.401,19.589751]
[1680475723026,10.0,20.414,20.401,19.589751]
[1680475723221,10.0,20.412,20.401,19.589751]
[1680475723525,10.0,20.412,20.398,10.0]
[1680475723726,10.0,20.412,20.4,10.0]
[1680475724316,27.0,20.415,20.4,10.0]
[1680475724317,17.0,20.415,20.4,10.0]
[1680475725219,10.0,20.414,20.4,10.0]
[1680475725531,10.0,20.412,20.4,10.0]
[1680475725922,17.0,20.411,20.4,10.0]
[1680475726530,10.0,20.414,20.398,29.589912]
[1680475726733,10.0,20.414,20.4,10.0]
[1680475727031,10.0,20.415,20.4,10.0]
[1680475728336,10.0,20.413,20.4,10.0]
[1680475729231,17.0,20.414,20.4,10.0]
[1680475731323,10.0,20.414,20.4,10.0]
[1680475731524,17.0,20.413,20.4,10.0]
[1680475732228,17.0,20.413,20.398,29.589912]
[1680475732430,10.0,20.412,20.4,10.0]
[1680475732632,17.0,20.411,20.4,10.0]
[1680475734425,10.0,20.412,20.4,10.0]
[1680475734626,17.0,20.411,20.4,10.0]
[1680475735244,10.0,20.414,20.4,10.0]
[1680475735541,10.0,20.42,20.402,10.0]
[1680475736043,10.0,20.42,20.404,10.0]
[1680475736248,10.0,20.42,20.406,10.0]
[1680475736437,10.0,20.42,20.407,20.0]
[1680475736628,38.55,20.42,20.407,20.0]
[1680475736828,10.0,20.418,20.407,20.0]
[1680475737129,10.0,20.416,20.407,20.0]
[1680475737329,17.0,20.417,20.407,20.0]
[1680475737531,38.55,20.42,20.407,10.0]
[1680475737738,38.55,20.42,20.409,10.0]
[1680475738141,50.72970063,20.428,20.409,10.0]
[1680475739329,10.0,20.422,20.409,10.0]
[1680475739531,17.0,20.421,20.409,10.0]
[1680475739734,10.0,20.42,20.409,10.0]
[1680475740255,10.0,20.42,20.407,125.4628]
[1680475740436,10.0,20.42,20.409,10.0]
[1680475740757,17.0,20.421,20.409,10.0]
[1680475741464,17.0,20.421,20.408,20.0]
[1680475746858,17.0,20.421,20.409,10.0]
[1680475749660,113.7865,20.427,20.409,10.0]
[1680475749866,113.7865,20.427,20.411,10.0]
[1680475750066,113.7865,20.427,20.413,10.0]
[1680475755167,113.7865,20.427,20.415,10.0]
[1680475757861,113.7865,20.427,20.417,10.0]
[1680475761364,14.60639706,20.429,20.419,10.0]
[1680475761549,55.04639428,20.44,20.419,10.0]
[1680475761550,10.0,20.437,20.419,10.0]
[1680475761861,10.0,20.437,20.421,10.0]
[1680475762765,10.0,20.435,20.421,10.0]
[1680475762967,10.0,20.433,20.421,10.0]
[1680475763351,10.0,20.435,20.421,10.0]
[1680475763565,10.0,20.433,20.421,10.0]
[1680475764065,10.0,20.435,20.421,10.0]
[1680475764267,10.0,20.433,20.421,10.0]
[1680475764646,17.0,20.434,20.421,10.0]
[1680475766770,10.0,20.435,20.421,10.0]
[1680475766973,17.0,20.434,20.421,10.0]
[1680475771561,10.0,20.437,20.421,10.0]
[1680475771765,10.0,20.435,20.421,10.0]
[1680475772671,10.0,20.437,20.421,10.0]
[1680475772871,28.55,20.44,20.423,10.0]
[1680475774666,114.7036,20.443,20.423,10.0]
[1680475774867,112.5562,20.449,20.424,44.35284372]
[1680475775072,10.0,20.447,20.426,10.0]
[1680475775371,10.0,20.447,20.428,10.0]
[1680475775667,10.0,20.447,20.429,37.0]
[1680475775869,10.0,20.447,20.43,10.0]
[1680475776063,10.0,20.447,20.431,17.0]
[1680475776363,10.0,20.447,20.432,10.0]
[1680475776760,10.0,20.448,20.432,10.0]
[1680475777268,127.12489859,20.449,20.434,10.0]
[1680475777567,127.12489859,20.449,20.436,10.0]
[1680475778278,10.0,20.447,20.436,10.0]
[1680475778686,10.0,20.447,20.434,10.0]
[1680475779583,127.12489859,20.449,20.435,17.0]
[1680475779963,127.12489859,20.449,20.436,10.0]
[1680475780468,127.12489859,20.449,20.438,10.0]
[1680475780885,127.12489859,20.449,20.44,10.0]
[1680475781259,19.571261,20.45,20.44,10.0]
[1680475781468,19.571261,20.45,20.442,10.0]
[1680475781770,19.571261,20.45,20.443,17.0]
[1680475782363,19.571261,20.45,20.44,38.55]
[1680475782562,19.571261,20.45,20.442,10.0]
[1680475783173,14.32550601,20.451,20.44,28.55]
[1680475783373,10.0,20.457,20.441,10.0]
[1680475783567,17.0,20.456,20.441,10.0]
[1680475783762,8.5,20.455,20.441,10.0]
[1680475783964,15.5,20.454,20.441,10.0]
[1680475785372,8.5,20.455,20.441,10.0]
[1680475785566,8.5,20.455,20.443,10.0]
[1680475786070,8.5,20.455,20.441,10.0]
[1680475787483,14.71667427,20.457,20.441,10.0]
[1680475787683,116.9735,20.46,20.443,10.0]
[1680475787871,30.0,20.459,20.444,17.0]
[1680475788066,30.0,20.459,20.445,10.0]
[1680475788268,30.0,20.459,20.446,17.0]
[1680475788269,20.0,20.459,20.446,17.0]
[1680475788482,20.0,20.459,20.447,10.0]
[1680475788682,20.0,20.459,20.448,17.0]
[1680475789062,20.0,20.459,20.447,10.0]
[1680475789875,20.0,20.459,20.448,17.0]
[1680475790072,20.0,20.459,20.449,10.0]
[1680475790273,116.9735,20.46,20.449,10.0]
[1680475790564,116.9735,20.46,20.451,10.0]
[1680475791380,116.9735,20.46,20.447,10.0]
[1680475791585,116.9735,20.46,20.449,10.0]
[1680475792174,116.9735,20.46,20.447,10.0]
[1680475792374,116.9735,20.46,20.448,20.0]
[1680475792872,116.9735,20.46,20.442,10.0]
[1680475792873,116.9735,20.46,20.447,10.0]
[1680475793080,116.9735,20.46,20.449,10.0]
[1680475794991,116.9735,20.46,20.451,10.0]
[1680475796270,116.9735,20.46,20.452,17.0]
[1680475796475,10.0,20.468,20.452,17.0]
[1680475796886,10.0,20.468,20.453,10.0]
[1680475797980,17.35284372,20.468,20.452,17.0]
[1680475798178,17.35284372,20.468,20.453,10.0]
[1680475800377,7.35284372,20.468,20.454,17.0]
[1680475800671,62.56900514,20.47,20.455,10.0]
[1680475800985,19.552996,20.47,20.46,28.55]
[1680475801198,19.552996,20.47,20.461,10.0]
[1680475801500,19.552996,20.47,20.462,17.0]
[1680475801683,19.552996,20.47,20.463,10.0]
[1680475801998,19.552996,20.47,20.464,17.0]
[1680475802379,10.0,20.481,20.465,10.0]
[1680475802581,127.55996282,20.482,20.466,17.0]
[1680475802779,127.55996282,20.482,20.467,20.0]
[1680475802980,127.55996282,20.482,20.468,27.0]
[1680475803290,127.55996282,20.482,20.469,10.0]
[1680475803590,127.55996282,20.482,20.471,10.0]
[1680475803791,127.55996282,20.482,20.469,10.0]
[1680475804000,10.0,20.481,20.468,10.0]
[1680475804186,10.0,20.481,20.47,10.0]
[1680475804498,10.0,20.481,20.468,10.0]
[1680475804699,10.0,20.481,20.47,10.0]
[1680475804898,10.0,20.481,20.468,10.0]
[1680475805103,10.0,20.481,20.47,10.0]
[1680475805400,127.55996282,20.482,20.47,10.0]
[1680475805779,127.55996282,20.482,20.47,38.55]
[1680475806193,127.55996282,20.482,20.47,28.55]
[1680475806383,10.0,20.481,20.467,20.0]
[1680475806586,10.0,20.481,20.465,10.0]
[1680475806786,10.0,20.479,20.465,10.0]
[1680475806985,10.0,20.477,20.46,28.55]
[1680475808486,10.0,20.477,20.46,144.178]
[1680475808683,10.0,20.477,20.465,10.0]
[1680475809294,17.35284372,20.479,20.465,10.0]
[1680475809492,7.35284372,20.479,20.467,10.0]
[1680475809692,161.44529589,20.493,20.467,10.0]
[1680475809897,134.91280654,20.482,20.469,10.0]
[1680475810111,10.0,20.48,20.469,10.0]
[1680475810298,20.0,20.479,20.469,10.0]
[1680475811008,10.0,20.479,20.469,10.0]
[1680475811196,20.0,20.48,20.469,10.0]
[1680475811597,20.0,20.48,20.468,17.0]
[1680475812591,10.0,20.48,20.468,17.0]
[1680475812791,20.0,20.479,20.468,17.0]
[1680475813503,20.0,20.479,20.47,28.55]
[1680475813800,127.55996282,20.482,20.471,27.0]
[1680475814006,14.62956282,20.482,20.471,27.0]
[1680475814186,10.0,20.487,20.472,10.0]
[1680475814387,17.0,20.486,20.472,10.0]
[1680475814586,10.0,20.485,20.472,10.0]
[1680475815306,10.0,20.487,20.472,10.0]
[1680475816097,110.5889,20.492,20.472,10.0]
[1680475816298,10.0,20.491,20.473,17.0]
[1680475816606,10.0,20.491,20.474,20.0]
[1680475816792,10.0,20.491,20.475,27.0]
[1680475816994,10.0,20.491,20.476,20.0]
[1680475817207,10.0,20.491,20.476,135.0789]
[1680475817611,10.0,20.491,20.478,10.0]
[1680475818205,10.0,20.491,20.47,28.55]
[1680475818493,10.0,20.491,20.472,10.0]
[1680475818494,10.0,20.489,20.472,10.0]
[1680475818900,17.35284372,20.489,20.472,10.0]
[1680475819106,15.85284372,20.489,20.472,10.0]
[1680475819401,8.5,20.489,20.472,10.0]
[1680475819910,8.5,20.489,20.474,10.0]
[1680475820105,9.5,20.491,20.476,10.0]
[1680475821795,9.5,20.491,20.474,10.0]
[1680475821996,28.55,20.49,20.471,112.5384]
[1680475822209,10.0,20.489,20.471,112.5384]
[1680475822414,17.35284372,20.489,20.472,10.0]
[1680475824712,10.0,20.498,20.474,10.0]
[1680475825024,10.0,20.498,20.476,10.0]
[1680475825319,10.0,20.498,20.478,10.0]
[1680475825705,10.0,20.498,20.48,10.0]
[1680475826619,10.0,20.498,20.48,52.56]
[1680475826918,10.0,20.498,20.482,10.0]
[1680475827704,10.0,20.498,20.482,129.7574]
[1680475828212,19.526057,20.499,20.482,129.7574]
[1680475828408,19.526057,20.499,20.484,10.0]
[1680475829403,19.526057,20.499,20.486,10.0]
[1680475829825,19.526057,20.499,20.487,37.0]
[1680475830026,19.526057,20.499,20.488,10.0]
[1680475830321,19.526057,20.499,20.487,20.0]
[1680475831030,19.526057,20.499,20.488,10.0]
[1680475832027,26.87890072,20.499,20.48,10.0]
[1680475832206,17.0,20.498,20.48,10.0]
[1680475832406,27.0,20.498,20.48,10.0]
[1680475832613,10.0,20.497,20.48,10.0]
[1680475832917,10.0,20.495,20.48,10.0]
[1680475833126,10.0,20.495,20.48,52.17]
[1680475833309,29.526057,20.499,20.481,17.0]
[1680475833310,19.526057,20.499,20.481,17.0]
[1680475833717,19.526057,20.499,20.482,17.35284372]
[1680475833909,19.526057,20.499,20.483,17.0]
[1680475834109,19.526057,20.499,20.483,24.35284372]
[1680475834428,19.526057,20.499,20.484,37.35284372]
[1680475834802,19.526057,20.499,20.485,27.0]
[1680475835033,19.526057,20.499,20.486,30.0]
[1680475835404,19.526057,20.499,20.487,10.0]
[1680475835605,19.526057,20.499,20.488,20.0]
[1680475836306,19.526057,20.499,20.489,10.0]
[1680475839528,79.04644972,20.504,20.489,10.0]
[1680475841626,17.0,20.503,20.488,20.0]
[1680475841831,10.0,20.502,20.485,20.0]
[1680475842015,10.0,20.502,20.486,10.0]
[1680475842215,10.0,20.502,20.487,20.0]
[1680475842428,10.0,20.502,20.488,10.0]
[1680475842629,17.0,20.503,20.488,10.0]
[1680475842923,27.0,20.503,20.488,10.0]
[1680475843326,17.0,20.503,20.488,10.0]
[1680475845519,79.04644972,20.504,20.488,10.0]
[1680475845919,10.0,20.503,20.488,10.0]
[1680475847531,79.04644972,20.504,20.488,10.0]
[1680475847929,10.0,20.503,20.488,10.0]
[1680475848237,79.04644972,20.504,20.488,10.0]
[1680475849436,79.04644972,20.504,20.49,10.0]
[1680475850120,64.6726,20.504,20.49,10.0]
[1680475850320,64.6726,20.504,20.491,17.0]
[1680475850621,64.6726,20.504,20.492,10.0]
[1680475857034,116.0729,20.511,20.492,10.0]
[1680475857336,116.0729,20.511,20.494,10.0]
[1680475857543,116.0729,20.511,20.496,10.0]
[1680475857737,116.0729,20.511,20.497,20.0]
[1680475857923,116.0729,20.511,20.498,10.0]
[1680475858326,10.0,20.51,20.497,20.0]
[1680475859531,10.0,20.51,20.497,10.0]
[1680475859733,10.0,20.51,20.498,20.0]
[1680475860445,14.27121665,20.511,20.499,10.0]
[1680475860649,10.0,20.514,20.499,10.0]
[1680475862349,69.2706,20.515,20.5,59.56]
[1680475862538,69.2706,20.515,20.501,10.0]
[1680475862737,68.7706,20.515,20.503,10.0]
[1680475863444,68.7706,20.515,20.501,10.0]
[1680475863643,68.7706,20.515,20.499,10.0]
[1680475863832,10.0,20.514,20.499,10.0]
[1680475864447,10.0,20.514,20.49,84.64]
[1680475864448,17.0,20.513,20.49,42.32]
[1680475864646,37.0,20.513,20.49,42.32]
[1680475864956,42.21,20.51,20.482,117.3451]
[1680475865258,125.1397,20.509,20.487,30.0]
[1680475865430,149.49254372,20.509,20.487,10.0]
[1680475865635,17.35284372,20.508,20.488,10.0]
[1680475865831,10.0,20.506,20.488,10.0]
[1680475866051,10.0,20.504,20.488,10.0]
[1680475866444,17.0,20.503,20.488,10.0]
[1680475867356,10.0,20.504,20.488,10.0]
[1680475867540,10.0,20.502,20.488,10.0]
[1680475867741,10.0,20.504,20.488,10.0]
[1680475867939,115.1397,20.509,20.489,7.35284372]
[1680475868151,109.1795,20.504,20.49,10.0]
[1680475868542,109.1795,20.504,20.49,17.35284372]
[1680475870150,109.1795,20.504,20.49,10.0]